[Event "Late-Titled-Tuesday-Blitz-October-24-2023"]
[Site "Chess.com"]
[Date "2023.10.24"]
[Round "6"]
[White "rychessmaster1"]
[Black "Vamostodorecto"]
[Result "1/2-1/2"]
[WhiteElo "2686"]
[BlackElo "2460"]
[TimeControl "180+1"]
[EndTime "15:07:48 PDT"]
[Termination "Game drawn by repetition"]

1. d4 {[%clk 0:03:00.9]} 1... d5 {[%clk 0:02:59]} 2. c4 {[%clk 0:03:00.9]} 2...
e5 {[%clk 0:02:59.6]} 3. dxe5 {[%clk 0:02:59]} 3... Ne7 {[%clk 0:03:00.3]} 4.
cxd5 {[%clk 0:02:57.8]} 4... Qxd5 {[%clk 0:02:59.7]} 5. Qxd5 {[%clk 0:02:57.6]}
5... Nxd5 {[%clk 0:03:00.5]} 6. Bd2 {[%clk 0:02:56.3]} 6... Nc6 {[%clk
0:02:58.4]} 7. Nc3 {[%clk 0:02:55.3]} 7... Be6 {[%clk 0:02:44.6]} 8. Nxd5 {[%clk
0:02:43.4]} 8... Bxd5 {[%clk 0:02:45.5]} 9. Nf3 {[%clk 0:02:43.9]} 9... h6
{[%clk 0:02:36.4]} 10. a3 {[%clk 0:02:31.3]} 10... g5 {[%clk 0:02:34.4]} 11. Bc3
{[%clk 0:02:31.5]} 11... Bg7 {[%clk 0:02:33.6]} 12. O-O-O {[%clk 0:02:30]} 12...
O-O-O {[%clk 0:02:31.3]} 13. e3 {[%clk 0:02:10]} 13... Bb3 {[%clk 0:02:30.2]}
14. Rxd8+ {[%clk 0:02:09.5]} 14... Rxd8 {[%clk 0:02:30.4]} 15. Be2 {[%clk
0:02:08.5]} 15... g4 {[%clk 0:02:27.8]} 16. Nd4 {[%clk 0:02:08.8]} 16... Nxd4
{[%clk 0:02:12.5]} 17. exd4 {[%clk 0:02:09]} 17... h5 {[%clk 0:02:03.2]} 18. h3
{[%clk 0:01:47.4]} 18... Bh6+ {[%clk 0:01:18.7]} 19. Kb1 {[%clk 0:01:47.5]}
19... c5 {[%clk 0:01:18.3]} 20. dxc5 {[%clk 0:01:09.9]} 20... Bd2 {[%clk
0:01:16.7]} 21. Bd1 {[%clk 0:00:55.3]} 21... Be6 {[%clk 0:01:04.4]} 22. Bxd2
{[%clk 0:00:41.5]} 22... Rxd2 {[%clk 0:01:02.9]} 23. hxg4 {[%clk 0:00:42.1]}
23... hxg4 {[%clk 0:01:02.4]} 24. f3 {[%clk 0:00:42.7]} 24... g3 {[%clk
0:00:57.4]} 25. Rg1 {[%clk 0:00:35]} 25... Bf5+ {[%clk 0:00:45.7]} 26. Kc1
{[%clk 0:00:31]} 26... Rf2 {[%clk 0:00:46.4]} 27. Bb3 {[%clk 0:00:26]} 27... Bd3
{[%clk 0:00:38.6]} 28. Bxf7 {[%clk 0:00:07.1]} 28... Kd7 {[%clk 0:00:36.9]} 29.
Bd5 {[%clk 0:00:06.4]} 29... Rc2+ {[%clk 0:00:28.7]} 30. Kd1 {[%clk 0:00:07.1]}
30... Rxb2 {[%clk 0:00:26.2]} 31. Re1 {[%clk 0:00:07.8]} 31... Rxg2 {[%clk
0:00:22.5]} 32. e6+ {[%clk 0:00:08.2]} 32... Ke7 {[%clk 0:00:21]} 33. f4 {[%clk
0:00:08.8]} 33... Rf2 {[%clk 0:00:16.6]} 34. Bxb7 {[%clk 0:00:08.3]} 34... g2
{[%clk 0:00:15.4]} 35. Bxg2 {[%clk 0:00:08.4]} 35... Rxg2 {[%clk 0:00:15]} 36.
Re3 {[%clk 0:00:06.1]} 36... Bb5 {[%clk 0:00:13.3]} 37. Re4 {[%clk 0:00:03.4]}
37... Rf2 {[%clk 0:00:12.3]} 38. a4 {[%clk 0:00:02.6]} 38... Bc6 {[%clk
0:00:11.7]} 39. Rb4 {[%clk 0:00:02.3]} 39... Kxe6 {[%clk 0:00:11.2]} 40. Ke1
{[%clk 0:00:02.6]} 40... Ra2 {[%clk 0:00:09.8]} 41. Kd1 {[%clk 0:00:02]} 41...
Rxa4 {[%clk 0:00:09.7]} 42. Rb8 {[%clk 0:00:02.3]} 42... Rxf4 {[%clk 0:00:09]}
43. Kd2 {[%clk 0:00:02.8]} 43... Rc4 {[%clk 0:00:08.1]} 44. Kd3 {[%clk
0:00:02.9]} 44... Rxc5 {[%clk 0:00:08.3]} 45. Kd4 {[%clk 0:00:03.6]} 45... Rd5+
{[%clk 0:00:08.4]} 46. Kc4 {[%clk 0:00:04.3]} 46... Ra5 {[%clk 0:00:07.9]} 47.
Rh8 {[%clk 0:00:03.6]} 47... Kd6 {[%clk 0:00:07.5]} 48. Rh6+ {[%clk 0:00:03.8]}
48... Kc7 {[%clk 0:00:07.6]} 49. Rh7+ {[%clk 0:00:04.4]} 49... Kb6 {[%clk
0:00:07.8]} 50. Rh6 {[%clk 0:00:04.5]} 50... Ra4+ {[%clk 0:00:08.4]} 51. Kb3
{[%clk 0:00:05.1]} 51... Rg4 {[%clk 0:00:08]} 52. Rh3 {[%clk 0:00:05.1]} 52...
a5 {[%clk 0:00:08.2]} 53. Re3 {[%clk 0:00:05.2]} 53... Rf4 {[%clk 0:00:08.3]}
54. Ka3 {[%clk 0:00:05.5]} 54... Kb5 {[%clk 0:00:07.5]} 55. Rb3+ {[%clk
0:00:05.8]} 55... Ka6 {[%clk 0:00:07.2]} 56. Rc3 {[%clk 0:00:06.2]} 56... Kb6
{[%clk 0:00:06.9]} 57. Rb3+ {[%clk 0:00:06.3]} 57... Bb5 {[%clk 0:00:07.6]} 58.
Re3 {[%clk 0:00:06.6]} 58... Ra4+ {[%clk 0:00:07.4]} 59. Kb3 {[%clk 0:00:06.9]}
59... Rb4+ {[%clk 0:00:08.3]} 60. Ka3 {[%clk 0:00:07.3]} 60... Rc4 {[%clk
0:00:07.7]} 61. Rh3 {[%clk 0:00:07.4]} 61... a4 {[%clk 0:00:07]} 62. Rg3 {[%clk
0:00:06.8]} 62... Ka5 {[%clk 0:00:07]} 63. Rh3 {[%clk 0:00:07.4]} 63... Rc1
{[%clk 0:00:06.7]} 64. Kb2 {[%clk 0:00:06.3]} 64... Rg1 {[%clk 0:00:06.2]} 65.
Ka3 {[%clk 0:00:06.4]} 65... Ra1+ {[%clk 0:00:05.1]} 66. Kb2 {[%clk 0:00:07]}
66... Rf1 {[%clk 0:00:05.3]} 67. Ka3 {[%clk 0:00:07.5]} 67... Rf4 {[%clk
0:00:05.3]} 68. Rg3 {[%clk 0:00:07.7]} 68... Rb4 {[%clk 0:00:05.5]} 69. Rh3
{[%clk 0:00:07.6]} 69... Rc4 {[%clk 0:00:06.2]} 70. Rg3 {[%clk 0:00:07.9]} 70...
Rc7 {[%clk 0:00:05.6]} 71. Rh3 {[%clk 0:00:08.3]} 71... Rb7 {[%clk 0:00:04.7]}
72. Rg3 {[%clk 0:00:08.5]} 72... Bc4 {[%clk 0:00:05.3]} 73. Rg5+ {[%clk
0:00:08.9]} 73... Bb5 {[%clk 0:00:04.3]} 74. Rg3 {[%clk 0:00:09.3]} 74... Rb6
{[%clk 0:00:04.7]} 75. Rh3 {[%clk 0:00:09.6]} 75... Rc6 {[%clk 0:00:05.4]} 76.
Rg3 {[%clk 0:00:10]} 76... Rc4 {[%clk 0:00:05.6]} 77. Rh3 {[%clk 0:00:10.5]}
77... Rd4 {[%clk 0:00:05.5]} 78. Rg3 {[%clk 0:00:11]} 78... Bd3 {[%clk
0:00:05.4]} 79. Rg5+ {[%clk 0:00:10.7]} 79... Bb5 {[%clk 0:00:05.4]} 80. Rg3
{[%clk 0:00:11.4]} 80... Rc4 {[%clk 0:00:04.8]} 1/2-1/2

[Event "Late-Titled-Tuesday-Blitz-October-24-2023"]
[Site "Chess.com"]
[Date "2023.10.24"]
[Round "6"]
[White "Inepton_Fermion"]
[Black "scandalgod"]
[Result "0-1"]
[WhiteElo "2356"]
[BlackElo "2514"]
[TimeControl "180+1"]
[EndTime "15:07:56 PDT"]
[Termination "scandalgod won on time"]

1. Nf3 {[%clk 0:03:00.9]} 1... d5 {[%clk 0:02:43]} 2. b3 {[%clk 0:03:01]} 2...
Bf5 {[%clk 0:02:41.6]} 3. Bb2 {[%clk 0:03:01.1]} 3... e6 {[%clk 0:02:42.1]} 4.
g3 {[%clk 0:03:01.1]} 4... Nf6 {[%clk 0:02:42.2]} 5. Bg2 {[%clk 0:03:01.6]} 5...
Be7 {[%clk 0:02:42.6]} 6. O-O {[%clk 0:03:01.9]} 6... h6 {[%clk 0:02:41.5]} 7.
d3 {[%clk 0:03:02.8]} 7... O-O {[%clk 0:02:41.5]} 8. Nbd2 {[%clk 0:03:03]} 8...
Bh7 {[%clk 0:02:41.2]} 9. Qe1 {[%clk 0:03:01]} 9... c5 {[%clk 0:02:40.3]} 10. e4
{[%clk 0:02:58.9]} 10... Nc6 {[%clk 0:02:40.8]} 11. Ne5 {[%clk 0:02:55.8]} 11...
Rc8 {[%clk 0:02:37]} 12. Nxc6 {[%clk 0:02:47.2]} 12... Rxc6 {[%clk 0:02:36.1]}
13. Qe2 {[%clk 0:02:47.1]} 13... Re8 {[%clk 0:02:26.7]} 14. a4 {[%clk 0:02:39]}
14... Qa5 {[%clk 0:02:21.4]} 15. Rfe1 {[%clk 0:02:33]} 15... Rcc8 {[%clk
0:02:17.4]} 16. Rad1 {[%clk 0:02:08.7]} 16... Red8 {[%clk 0:02:15.1]} 17. exd5
{[%clk 0:01:53.7]} 17... Nxd5 {[%clk 0:02:12]} 18. Nc4 {[%clk 0:01:53.4]} 18...
Qa6 {[%clk 0:02:06.4]} 19. Qg4 {[%clk 0:01:43.9]} 19... Bf8 {[%clk 0:02:01.9]}
20. h4 {[%clk 0:01:33.3]} 20... Bf5 {[%clk 0:02:01.5]} 21. Qf3 {[%clk
0:01:32.7]} 21... Qc6 {[%clk 0:01:46.1]} 22. Ne5 {[%clk 0:01:21.1]} 22... Qc7
{[%clk 0:01:44.8]} 23. h5 {[%clk 0:00:45.4]} 23... Bd6 {[%clk 0:01:34]} 24. Nc4
{[%clk 0:00:38.4]} 24... Bf8 {[%clk 0:01:29]} 25. Ne5 {[%clk 0:00:37.5]} 25...
Qe7 {[%clk 0:01:20.1]} 26. Nc4 {[%clk 0:00:20.2]} 26... Qg5 {[%clk 0:01:15.3]}
27. Bc1 {[%clk 0:00:18.4]} 27... Qg4 {[%clk 0:01:13.9]} 28. Ne5 {[%clk
0:00:14.6]} 28... Qxf3 {[%clk 0:01:13.4]} 29. Bxf3 {[%clk 0:00:15.1]} 29... a6
{[%clk 0:01:13.3]} 30. c4 {[%clk 0:00:11.3]} 30... Nb4 {[%clk 0:01:11.7]} 31.
Bxb7 {[%clk 0:00:11.3]} 31... Rb8 {[%clk 0:01:07.2]} 32. Be4 {[%clk 0:00:08.5]}
32... Bxe4 {[%clk 0:00:59.9]} 33. dxe4 {[%clk 0:00:05.7]} 33... Nc2 {[%clk
0:00:57.4]} 34. Nc6 {[%clk 0:00:02.1]} 34... Rxd1 {[%clk 0:00:50]} 35. Rxd1
{[%clk 0:00:02.4]} 35... Rc8 {[%clk 0:00:45.5]} 36. Ne5 {[%clk 0:00:02.4]} 36...
Nd4 {[%clk 0:00:43.2]} 37. Be3 {[%clk 0:00:01.7]} 37... Nxb3 {[%clk 0:00:37.8]}
38. Rd3 {[%clk 0:00:01.7]} 38... Na5 {[%clk 0:00:36.9]} 39. Nd7 {[%clk
0:00:01.8]} 39... Nxc4 {[%clk 0:00:34.1]} 40. Rc3 {[%clk 0:00:01.5]} 40... Nxe3
{[%clk 0:00:32.6]} 41. Rxe3 {[%clk 0:00:02.4]} 41... c4 {[%clk 0:00:31.1]} 42.
Rc3 {[%clk 0:00:02.6]} 42... Bb4 {[%clk 0:00:31.3]} 43. Rc2 {[%clk 0:00:02.8]}
43... a5 {[%clk 0:00:31.1]} 44. Nb6 {[%clk 0:00:02.3]} 44... Rd8 {[%clk
0:00:29.3]} 45. Nxc4 {[%clk 0:00:02.5]} 45... Rd4 {[%clk 0:00:27]} 46. f3 {[%clk
0:00:03]} 46... Bc5 {[%clk 0:00:25.6]} 47. Kg2 {[%clk 0:00:03.2]} 47... Rd1
{[%clk 0:00:23.1]} 48. Nxa5 {[%clk 0:00:02.7]} 48... Be3 {[%clk 0:00:20]} 49.
Nc4 {[%clk 0:00:02.4]} 49... Bd4 {[%clk 0:00:18.9]} 50. Ra2 {[%clk 0:00:02.1]}
50... Rg1+ {[%clk 0:00:18.8]} 51. Kh2 {[%clk 0:00:02.1]} 51... Rc1 {[%clk
0:00:17.3]} 52. Nd2 {[%clk 0:00:02]} 52... Ba7 {[%clk 0:00:06.9]} 53. a5 {[%clk
0:00:02.2]} 53... Rc5 {[%clk 0:00:06.5]} 54. a6 {[%clk 0:00:02.5]} 54... Rxh5+
{[%clk 0:00:06.5]} 55. Kg2 {[%clk 0:00:02.4]} 55... Rb5 {[%clk 0:00:05.5]} 56.
Nc4 {[%clk 0:00:01.9]} 56... f5 {[%clk 0:00:04.2]} 57. exf5 {[%clk 0:00:01.7]}
57... exf5 {[%clk 0:00:05.1]} 58. Nd6 {[%clk 0:00:01.8]} 58... Rb8 {[%clk
0:00:04.3]} 59. Nxf5 {[%clk 0:00:01.5]} 59... Kh7 {[%clk 0:00:04.6]} 60. Nd6
{[%clk 0:00:01.9]} 60... Ra8 {[%clk 0:00:01.2]} 61. Ne4 {[%clk 0:00:02.5]} 61...
Bb6 {[%clk 0:00:01.5]} 62. Kf1 {[%clk 0:00:02.7]} 62... Rc8 {[%clk 0:00:01.3]}
63. Ke2 {[%clk 0:00:02.7]} 63... Ra8 {[%clk 0:00:01.8]} 64. Kd3 {[%clk 0:00:03]}
64... Ba7 {[%clk 0:00:02.7]} 65. Kc4 {[%clk 0:00:03.3]} 65... Rc8+ {[%clk
0:00:03.3]} 66. Kd5 {[%clk 0:00:02.4]} 66... Rb8 {[%clk 0:00:03.7]} 67. Kc6
{[%clk 0:00:02.7]} 67... Rb3 {[%clk 0:00:04.3]} 68. Nd6 {[%clk 0:00:01.9]} 68...
Rxf3 {[%clk 0:00:04]} 69. Nb5 {[%clk 0:00:01.9]} 69... Bg1 {[%clk 0:00:03.7]}
70. Kd5 {[%clk 0:00:01.1]} 70... Rxg3 {[%clk 0:00:03.2]} 71. Nd4 {[%clk
0:00:01.4]} 71... Rg5+ {[%clk 0:00:03.1]} 72. Ke4 {[%clk 0:00:01.2]} 72... Rg4+
{[%clk 0:00:03.2]} 73. Kf3 {[%clk 0:00:01.5]} 73... Bxd4 {[%clk 0:00:03.7]} 74.
Kxg4 {[%clk 0:00:01.3]} 74... Kg6 {[%clk 0:00:02.4]} 0-1

[Event "Late-Titled-Tuesday-Blitz-October-24-2023"]
[Site "Chess.com"]
[Date "2023.10.24"]
[Round "6"]
[White "Duhless"]
[Black "vugarrasulov"]
[Result "1-0"]
[WhiteElo "3126"]
[BlackElo "3004"]
[TimeControl "180+1"]
[EndTime "15:07:57 PDT"]
[Termination "Duhless won by resignation"]

1. d4 {[%clk 0:03:00.9]} 1... Nf6 {[%clk 0:02:59.9]} 2. Nf3 {[%clk 0:03:01.4]}
2... e6 {[%clk 0:02:59.7]} 3. c4 {[%clk 0:03:01.8]} 3... c5 {[%clk 0:03:00]} 4.
d5 {[%clk 0:03:00.8]} 4... exd5 {[%clk 0:03:00.3]} 5. cxd5 {[%clk 0:03:01.7]}
5... d6 {[%clk 0:03:01]} 6. Nc3 {[%clk 0:03:01.7]} 6... g6 {[%clk 0:03:00.9]} 7.
Nd2 {[%clk 0:03:02.1]} 7... Bg7 {[%clk 0:03:00.1]} 8. e4 {[%clk 0:03:02.7]} 8...
O-O {[%clk 0:02:57.4]} 9. Be2 {[%clk 0:03:03.2]} 9... Na6 {[%clk 0:02:55.3]} 10.
O-O {[%clk 0:03:03]} 10... Nc7 {[%clk 0:02:55.7]} 11. a4 {[%clk 0:02:59.1]}
11... Re8 {[%clk 0:02:55]} 12. f3 {[%clk 0:02:56.6]} 12... Nd7 {[%clk
0:02:54.4]} 13. Nc4 {[%clk 0:02:56.9]} 13... Ne5 {[%clk 0:02:49.6]} 14. Ne3
{[%clk 0:02:57.2]} 14... Rb8 {[%clk 0:02:30.9]} 15. Kh1 {[%clk 0:02:53.7]} 15...
Nd7 {[%clk 0:01:46.2]} 16. f4 {[%clk 0:02:35.4]} 16... Bxc3 {[%clk 0:01:35]} 17.
bxc3 {[%clk 0:02:34.6]} 17... Rxe4 {[%clk 0:01:35.1]} 18. Bd3 {[%clk 0:02:29.8]}
18... Rxe3 {[%clk 0:01:20.4]} 19. Bxe3 {[%clk 0:02:30.7]} 19... Nxd5 {[%clk
0:01:20.9]} 20. Bd2 {[%clk 0:02:18.7]} 20... N7f6 {[%clk 0:01:14.9]} 21. f5
{[%clk 0:02:09.5]} 21... c4 {[%clk 0:01:00.3]} 22. fxg6 {[%clk 0:01:30.5]} 22...
hxg6 {[%clk 0:00:50.5]} 23. Bxc4 {[%clk 0:01:28.6]} 23... Be6 {[%clk 0:00:51.1]}
24. Bg5 {[%clk 0:01:08.9]} 24... Qc7 {[%clk 0:00:50.1]} 25. Qd4 {[%clk
0:01:05.9]} 25... Rc8 {[%clk 0:00:41.4]} 26. Ba2 {[%clk 0:01:02.7]} 26... Nh7
{[%clk 0:00:24.7]} 27. Bd2 {[%clk 0:00:59.1]} 27... Qc5 {[%clk 0:00:19.9]} 28.
Qh4 {[%clk 0:00:58.4]} 28... Nc7 {[%clk 0:00:14.1]} 29. Bb1 {[%clk 0:00:32.9]}
29... Qc4 {[%clk 0:00:13.8]} 30. Qf2 {[%clk 0:00:17]} 30... Nd5 {[%clk
0:00:12.6]} 31. Ba2 {[%clk 0:00:14.8]} 31... Qg4 {[%clk 0:00:12.2]} 32. Rae1
{[%clk 0:00:14.1]} 32... Nhf6 {[%clk 0:00:08]} 33. c4 {[%clk 0:00:13.2]} 33...
Ne4 {[%clk 0:00:06.8]} 34. Rxe4 {[%clk 0:00:12.9]} 34... Qxe4 {[%clk 0:00:07.7]}
35. cxd5 {[%clk 0:00:12.8]} 35... Bxd5 {[%clk 0:00:08.6]} 36. Bxd5 {[%clk
0:00:11.4]} 36... Qxd5 {[%clk 0:00:09.5]} 37. Bh6 {[%clk 0:00:09.9]} 37... Kh7
{[%clk 0:00:07.3]} 38. Be3 {[%clk 0:00:08.9]} 38... Kg8 {[%clk 0:00:06.6]} 39.
Bxa7 {[%clk 0:00:07.8]} 39... Rc4 {[%clk 0:00:06.8]} 40. Be3 {[%clk 0:00:07]}
40... Rxa4 {[%clk 0:00:06.9]} 41. h3 {[%clk 0:00:06.2]} 41... Re4 {[%clk
0:00:06.4]} 42. Qf3 {[%clk 0:00:05.4]} 42... Re5 {[%clk 0:00:05.8]} 43. Qxd5
{[%clk 0:00:05]} 43... Rxd5 {[%clk 0:00:06.7]} 44. Rb1 {[%clk 0:00:05.2]} 44...
b5 {[%clk 0:00:07]} 45. Kg1 {[%clk 0:00:05.9]} 45... f5 {[%clk 0:00:06.6]} 46.
Kf2 {[%clk 0:00:06.4]} 46... Kf7 {[%clk 0:00:07.3]} 47. Ke2 {[%clk 0:00:06.6]}
47... Ke6 {[%clk 0:00:07.8]} 48. Rb2 {[%clk 0:00:06.8]} 48... Kd7 {[%clk
0:00:08]} 49. Kf3 {[%clk 0:00:06.3]} 49... Kc6 {[%clk 0:00:07.5]} 50. Rb1 {[%clk
0:00:06.7]} 50... Rd3 {[%clk 0:00:07.3]} 51. Rc1+ {[%clk 0:00:06.1]} 51... Kd5
{[%clk 0:00:06.6]} 52. Rc7 {[%clk 0:00:05.7]} 52... b4 {[%clk 0:00:06.1]} 53.
Ke2 {[%clk 0:00:05.6]} 53... Ra3 {[%clk 0:00:05.3]} 54. Bd2 {[%clk 0:00:06]}
54... b3 {[%clk 0:00:03.4]} 55. Rb7 {[%clk 0:00:05.9]} 55... Kc4 {[%clk
0:00:03.3]} 56. Rb4+ {[%clk 0:00:06.1]} 56... Kc5 {[%clk 0:00:04]} 57. Rb8
{[%clk 0:00:05.5]} 57... Kc4 {[%clk 0:00:04.2]} 58. Rc8+ {[%clk 0:00:05.5]}
58... Kd5 {[%clk 0:00:04.7]} 59. Rb8 {[%clk 0:00:03.1]} 59... Kc4 {[%clk
0:00:04.6]} 60. Rb7 {[%clk 0:00:03.2]} 60... Ra2 {[%clk 0:00:03.7]} 61. Rb4+
{[%clk 0:00:03.2]} 61... Kd5 {[%clk 0:00:04.3]} 62. Rxb3 {[%clk 0:00:04]} 62...
Ra4 {[%clk 0:00:04.8]} 63. Rd3+ {[%clk 0:00:04.1]} 63... Ke6 {[%clk 0:00:04.6]}
64. Re3+ {[%clk 0:00:04.6]} 64... Re4 {[%clk 0:00:04.6]} 65. Rxe4+ {[%clk
0:00:03.6]} 65... fxe4 {[%clk 0:00:05.5]} 66. Ke3 {[%clk 0:00:03.9]} 66... d5
{[%clk 0:00:06]} 67. Kf4 {[%clk 0:00:03.7]} 67... Kf6 {[%clk 0:00:05]} 68. Bc3+
{[%clk 0:00:04]} 68... Ke6 {[%clk 0:00:05.8]} 69. Bd4 {[%clk 0:00:04.7]} 69...
Kf7 {[%clk 0:00:05.8]} 70. Ke5 {[%clk 0:00:04.7]} 70... g5 {[%clk 0:00:04.4]}
71. g4 {[%clk 0:00:04.1]} 71... Kg6 {[%clk 0:00:04.2]} 72. Kxd5 {[%clk
0:00:04.5]} 72... e3 {[%clk 0:00:05.1]} 73. Bxe3 {[%clk 0:00:04.9]} 1-0

[Event "Late-Titled-Tuesday-Blitz-October-24-2023"]
[Site "Chess.com"]
[Date "2023.10.24"]
[Round "7"]
[White "pedromartinez91"]
[Black "Elsa167"]
[Result "0-1"]
[WhiteElo "2626"]
[BlackElo "2890"]
[TimeControl "180+1"]
[EndTime "15:10:09 PDT"]
[Termination "Elsa167 won by resignation"]

1. d4 {[%clk 0:02:53.8]} 1... Nf6 {[%clk 0:03:00.1]} 2. c4 {[%clk 0:02:51.2]}
2... g6 {[%clk 0:03:00.4]} 3. Nc3 {[%clk 0:02:50.2]} 3... Bg7 {[%clk 0:03:00.9]}
4. e4 {[%clk 0:02:49.3]} 4... d6 {[%clk 0:03:01.4]} 5. Nf3 {[%clk 0:02:48.1]}
5... Bg4 {[%clk 0:03:00.8]} 6. Be2 {[%clk 0:02:47.8]} 6... Bxf3 {[%clk
0:03:01.3]} 7. Bxf3 {[%clk 0:02:48.1]} 7... e5 {[%clk 0:03:02.2]} 8. d5 {[%clk
0:02:46.2]} 8... h5 {[%clk 0:03:01]} 9. Qb3 {[%clk 0:02:41.1]} 9... Qc8 {[%clk
0:03:00.4]} 10. c5 {[%clk 0:02:39]} 10... dxc5 {[%clk 0:02:55.1]} 11. Be3 {[%clk
0:02:31.2]} 11... Nbd7 {[%clk 0:02:52.9]} 12. h3 {[%clk 0:02:31.3]} 12... O-O
{[%clk 0:02:51.5]} 13. g4 {[%clk 0:02:22.9]} 13... h4 {[%clk 0:02:49.7]} 14. g5
{[%clk 0:02:21.7]} 14... Ne8 {[%clk 0:02:48.6]} 15. Bg4 {[%clk 0:02:20.2]} 15...
Nd6 {[%clk 0:02:48.7]} 16. Bxc5 {[%clk 0:02:17.6]} 16... Nxc5 {[%clk 0:02:49.6]}
17. Qc2 {[%clk 0:02:03.5]} 17... Qd8 {[%clk 0:02:49.2]} 18. Qd2 {[%clk
0:02:02.2]} 18... Ncxe4 {[%clk 0:02:49.4]} 0-1

[Event "Late-Titled-Tuesday-Blitz-October-24-2023"]
[Site "Chess.com"]
[Date "2023.10.24"]
[Round "7"]
[White "IMRosen"]
[Black "Lady_Nika"]
[Result "1-0"]
[WhiteElo "2632"]
[BlackElo "2524"]
[TimeControl "180+1"]
[EndTime "15:10:59 PDT"]
[Termination "IMRosen won by resignation"]

1. e4 {[%clk 0:02:50.3]} 1... c5 {[%clk 0:02:59.8]} 2. Nc3 {[%clk 0:02:48.6]}
2... e6 {[%clk 0:02:59.9]} 3. Nf3 {[%clk 0:02:47.6]} 3... Nc6 {[%clk 0:02:59.9]}
4. d4 {[%clk 0:02:46.7]} 4... cxd4 {[%clk 0:02:59.8]} 5. Nxd4 {[%clk 0:02:47.6]}
5... a6 {[%clk 0:02:59.8]} 6. g3 {[%clk 0:02:46.1]} 6... Qc7 {[%clk 0:02:59.4]}
7. Bg2 {[%clk 0:02:46]} 7... Nf6 {[%clk 0:02:59.1]} 8. O-O {[%clk 0:02:46.2]}
8... Be7 {[%clk 0:02:59]} 9. h3 {[%clk 0:02:41.7]} 9... O-O {[%clk 0:02:58.7]}
10. Be3 {[%clk 0:02:41.1]} 10... b5 {[%clk 0:02:56.9]} 11. a4 {[%clk 0:02:39.5]}
11... b4 {[%clk 0:02:56.6]} 12. Na2 {[%clk 0:02:39.2]} 12... a5 {[%clk
0:02:56.8]} 13. Nb5 {[%clk 0:02:35.1]} 13... Qe5 {[%clk 0:02:47]} 14. f4 {[%clk
0:02:33.2]} 14... Qb8 {[%clk 0:02:43.2]} 15. e5 {[%clk 0:02:33]} 15... Ne8
{[%clk 0:02:36.3]} 16. c3 {[%clk 0:02:32.9]} 16... Ba6 {[%clk 0:02:33.8]} 17.
Qxd7 {[%clk 0:02:21.9]} 17... Bxb5 {[%clk 0:02:33.3]} 18. axb5 {[%clk
0:02:20.2]} 18... Nxe5 {[%clk 0:02:32.4]} 19. fxe5 {[%clk 0:02:16]} 19... Qxe5
{[%clk 0:02:32]} 20. Bd4 {[%clk 0:02:12.9]} 20... Qxg3 {[%clk 0:02:30.6]} 21.
Qxe7 {[%clk 0:02:11.2]} 21... Rc8 {[%clk 0:02:29.9]} 22. b6 {[%clk 0:02:05]}
22... Nf6 {[%clk 0:02:21]} 23. Rxf6 {[%clk 0:02:01.3]} 23... gxf6 {[%clk
0:02:19.6]} 24. Qxf6 {[%clk 0:02:02.2]} 1-0

[Event "Late-Titled-Tuesday-Blitz-October-24-2023"]
[Site "Chess.com"]
[Date "2023.10.24"]
[Round "7"]
[White "TheMagician"]
[Black "PNEPaul"]
[Result "1-0"]
[WhiteElo "2164"]
[BlackElo "1852"]
[TimeControl "180+1"]
[EndTime "15:11:00 PDT"]
[Termination "TheMagician won by resignation"]

1. c4 {[%clk 0:03:00.9]} 1... a6 {[%clk 0:02:44.9]} 2. e4 {[%clk 0:02:58.3]}
2... d6 {[%clk 0:02:44.9]} 3. d4 {[%clk 0:02:57.8]} 3... g6 {[%clk 0:02:45]} 4.
Nc3 {[%clk 0:02:57.5]} 4... h6 {[%clk 0:02:45.2]} 5. f3 {[%clk 0:02:58]} 5...
Bg7 {[%clk 0:02:45.4]} 6. Be3 {[%clk 0:02:58.5]} 6... Nd7 {[%clk 0:02:45.5]} 7.
Qd2 {[%clk 0:02:59.2]} 7... e5 {[%clk 0:02:45.4]} 8. d5 {[%clk 0:02:55.7]} 8...
Ne7 {[%clk 0:02:45.2]} 9. Bd3 {[%clk 0:02:52]} 9... f5 {[%clk 0:02:45.1]} 10.
Nge2 {[%clk 0:02:46]} 10... f4 {[%clk 0:02:44.3]} 11. Bf2 {[%clk 0:02:45.8]}
11... g5 {[%clk 0:02:42.2]} 12. O-O-O {[%clk 0:02:42.3]} 12... Nf6 {[%clk
0:02:41.8]} 13. Kb1 {[%clk 0:02:41.9]} 13... O-O {[%clk 0:02:35.1]} 14. c5
{[%clk 0:02:41.7]} 14... Bd7 {[%clk 0:02:29.5]} 15. Rc1 {[%clk 0:02:41.2]} 15...
Qe8 {[%clk 0:02:23.1]} 16. Qc2 {[%clk 0:02:41.2]} 16... Rc8 {[%clk 0:02:20.8]}
17. Qb3 {[%clk 0:02:41]} 17... dxc5 {[%clk 0:02:16.9]} 18. d6+ {[%clk
0:02:37.9]} 18... Kh7 {[%clk 0:02:10.7]} 19. dxe7 {[%clk 0:02:38.3]} 19... Qxe7
{[%clk 0:02:10.4]} 20. Nd5 {[%clk 0:02:37.6]} 20... Nxd5 {[%clk 0:02:06.2]} 21.
exd5+ {[%clk 0:02:37.8]} 21... Kh8 {[%clk 0:02:03.3]} 22. Bxc5 {[%clk
0:02:37.9]} 22... Qf7 {[%clk 0:02:00.7]} 23. Bxf8 {[%clk 0:02:37.3]} 23... Qxf8
{[%clk 0:01:58.2]} 24. Be4 {[%clk 0:02:37.5]} 24... Bb5 {[%clk 0:01:56.8]} 25.
Nc3 {[%clk 0:02:35.2]} 25... Qe8 {[%clk 0:01:53.5]} 26. Nxb5 {[%clk 0:02:34.6]}
26... axb5 {[%clk 0:01:53.6]} 27. Rc5 {[%clk 0:02:33.6]} 1-0

[Event "Late-Titled-Tuesday-Blitz-October-24-2023"]
[Site "Chess.com"]
[Date "2023.10.24"]
[Round "7"]
[White "UK_23"]
[Black "zajka-molotok"]
[Result "0-1"]
[WhiteElo "2400"]
[BlackElo "2549"]
[TimeControl "180+1"]
[EndTime "15:11:02 PDT"]
[Termination "zajka-molotok won by resignation"]

1. e4 {[%clk 0:02:58.9]} 1... c5 {[%clk 0:02:59.3]} 2. Nf3 {[%clk 0:02:59.2]}
2... Nc6 {[%clk 0:02:59.2]} 3. Bb5 {[%clk 0:02:59.7]} 3... g6 {[%clk 0:02:59]}
4. O-O {[%clk 0:03:00]} 4... Bg7 {[%clk 0:02:58.5]} 5. c3 {[%clk 0:03:00.7]}
5... e5 {[%clk 0:02:58.4]} 6. d4 {[%clk 0:03:00.6]} 6... cxd4 {[%clk 0:02:57.9]}
7. cxd4 {[%clk 0:03:01.2]} 7... Nxd4 {[%clk 0:02:57]} 8. Nxd4 {[%clk 0:03:01]}
8... exd4 {[%clk 0:02:57.9]} 9. Bf4 {[%clk 0:02:56]} 9... Ne7 {[%clk 0:02:53.2]}
10. e5 {[%clk 0:02:51.5]} 10... Nc6 {[%clk 0:02:48.4]} 11. Na3 {[%clk
0:02:50.1]} 11... a6 {[%clk 0:02:35.6]} 12. Bd3 {[%clk 0:02:36.9]} 12... b5
{[%clk 0:02:33.7]} 13. Re1 {[%clk 0:02:35.1]} 13... O-O {[%clk 0:02:31.9]} 14.
Nc2 {[%clk 0:02:35.1]} 14... Re8 {[%clk 0:02:29.5]} 15. Rc1 {[%clk 0:02:31.4]}
15... Bb7 {[%clk 0:02:22.2]} 16. Qg4 {[%clk 0:02:25.8]} 16... Nxe5 {[%clk
0:02:18.6]} 17. Bxe5 {[%clk 0:02:25.8]} 17... Rxe5 {[%clk 0:02:13.1]} 18. Nxd4
{[%clk 0:02:25.1]} 18... Rd5 {[%clk 0:02:05.2]} 19. Re4 {[%clk 0:02:16.4]} 19...
f5 {[%clk 0:01:57.1]} 0-1